bitfinex/quotes_ETHUSD_20240926
["timestamp","ask_amount","ask_price","bid_price","bid_amount"]
[1727375678984,3.60277072,2642.3,2642.0,2.64204545]
[1727375678985,2.77483883,2642.2,2642.0,2.64204545]
[1727375679181,0.8301,2642.3,2642.0,2.64204545]
[1727375679182,2.77483883,2642.1,2642.0,2.64204545]
[1727375679384,2.73922908,2642.1,2642.0,2.64204545]
[1727375680057,0.36049388,2642.1,2642.0,2.64204545]
[1727375680473,2.77483883,2642.3,2642.0,2.64204545]
[1727375681100,2.37983297,2642.1,2642.0,2.64204545]
[1727375681299,0.8301,2642.4,2642.0,2.64204545]
[1727375681300,2.77483883,2642.2,2642.0,2.64204545]
[1727375682175,2.77483883,2642.1,2642.0,2.64204545]
[1727375682394,3.05232271,2642.1,2642.0,2.64204545]
[1727375683012,0.27748388,2642.1,2642.0,2.64204545]
[1727375684883,0.27748388,2642.1,2642.0,3.42234545]
[1727375685215,2.77974781,2642.3,2642.0,3.42234545]
[1727375686818,2.38238408,2642.1,2642.0,3.42234545]
[1727375687016,2.77974781,2642.3,2642.0,3.42234545]
[1727375687311,0.27797478,2642.2,2642.0,3.42234545]
[1727375687826,2.38235604,2642.1,2642.0,3.42234545]
[1727375688722,2.38238572,2642.1,2642.0,3.42234545]
[1727375689231,2.77945,2642.3,2642.0,3.42234545]
[1727375692577,2.38239224,2642.1,2642.0,3.42234545]
[1727375692805,2.77945,2642.3,2642.0,3.42234545]
[1727375693006,0.2845304,2642.2,2642.0,3.42234545]
[1727375693206,2.38239452,2642.1,2642.0,3.97234545]
[1727375693405,3.0377918,2643.0,2642.0,3.97234545]
[1727375693406,2.38239452,2642.2,2642.0,3.97234545]
[1727375693621,2.38239452,2642.3,2642.0,3.97234545]
[1727375694130,3.19339452,2642.3,2642.0,2.64204545]
[1727375694311,2.62063397,2642.2,2642.0,2.64204545]
[1727375694826,2.38239452,2642.1,2642.0,2.64204545]
[1727375696298,0.811,2642.1,2642.0,2.64204545]
[1727375696496,3.59045,2642.1,2642.0,2.64204545]
[1727375696704,1.19386895,2642.1,2642.0,2.64204545]
[1727375697105,0.811,2642.1,2642.0,2.64204545]
[1727375699288,0.811,2642.1,2641.4,3.78586]
[1727375699289,4.09398969,2642.1,2641.4,3.78586]
[1727375699593,4.09398969,2642.1,2641.3,0.7717]
[1727375699594,2.38240174,2641.5,2641.3,0.7717]
[1727375700329,2.38240174,2641.5,2641.0,0.7717]
[1727375700537,2.38240174,2641.4,2641.0,4.55812]
[1727375700826,2.38240174,2641.5,2641.4,3.78587]
[1727375701026,3.34911133,2642.0,2641.5,1.3299]
[1727375701027,2.38240174,2641.8,2641.5,1.3299]
[1727375701392,2.38240174,2641.9,2641.5,1.3299]
[1727375702013,0.35039719,2642.0,2641.5,1.3299]
[1727375702014,2.38240174,2641.7,2641.5,0.7799]
[1727375703228,2.38240174,2641.8,2641.5,0.7799]
[1727375703437,2.38240174,2641.6,2641.2,0.7799]
[1727375704197,2.38240174,2641.7,2641.5,0.7799]
[1727375704410,2.38240174,2641.8,2641.5,0.7799]
[1727375704623,2.44826567,2642.0,2641.5,4.56561]
[1727375704936,2.38240174,2642.0,2641.7,3.49679027]
[1727375705133,2.38240174,2642.0,2641.8,0.7799]
[1727375705632,2.38240174,2642.1,2641.8,0.7799]
[1727375707737,2.89858878,2642.1,2641.8,0.7799]
[1727375707896,2.38240174,2642.0,2641.8,0.7799]
[1727375711573,2.38069328,2642.0,2641.8,0.7799]
[1727375715475,2.38069328,2641.9,2641.8,0.7799]
[1727375715778,2.38069328,2642.0,2641.8,0.7799]
[1727375716774,2.38193483,2641.9,2641.8,0.7799]
[1727375717556,2.38193483,2641.9,2641.4,0.7674]
[1727375717757,2.38193483,2641.6,2641.4,0.7674]
[1727375717983,2.62012831,2641.6,2641.0,7.28321027]
[1727375718306,2.38193483,2641.3,2641.1,0.7674]
[1727375718512,2.38193483,2641.2,2641.1,0.7674]
[1727375718802,2.38193483,2641.3,2641.1,0.7674]
[1727375719012,2.38193483,2641.3,2640.9,0.7674]
[1727375719178,2.38193483,2641.2,2640.9,0.7674]
[1727375720105,2.38193483,2641.2,2640.6,3.78694]
[1727375720277,0.41828792,2641.4,2640.7,0.7674]
[1727375720278,2.38193483,2641.1,2640.7,0.7674]
[1727375720467,2.38193483,2641.0,2640.7,0.7674]
[1727375720668,2.38193483,2641.0,2640.7,4.55425]
[1727375721099,2.77892397,2641.3,2640.7,4.55425]
[1727375721100,2.38193483,2641.1,2640.7,4.26419027]
[1727375721369,2.77892397,2641.3,2640.7,8.05097027]
[1727375721370,2.38320675,2641.0,2640.7,8.05097027]
[1727375721627,2.38320675,2641.1,2640.7,8.05097027]
[1727375721774,2.38320675,2641.2,2640.9,3.49679027]
[1727375721977,2.38320675,2641.1,2640.8,3.78671]
[1727375722305,2.38320675,2641.1,2640.7,4.55426]
[1727375722480,2.38320675,2641.1,2640.7,0.7674]
[1727375722681,2.38320675,2641.0,2640.7,0.7674]
[1727375722889,2.38320675,2641.1,2640.7,0.7674]
[1727375723087,1.06354079,2641.2,2640.5,0.7674]
[1727375723406,1.06354079,2641.2,2640.4,3.78722]
[1727375723407,2.38283884,2640.9,2640.4,3.78722]
[1727375723613,2.38283884,2641.1,2640.8,3.78665]
[1727375723780,2.38283884,2641.1,2640.7,3.49679027]
[1727375723994,2.38283884,2641.1,2640.8,3.78672]
[1727375724205,2.38283884,2641.1,2640.6,3.78701]
[1727375724383,2.38283884,2641.1,2640.7,3.78682]
[1727375724581,2.38283884,2641.2,2640.7,3.78682]
[1727375724914,2.38283884,2641.2,2640.6,3.78693]
[1727375725213,2.38283884,2641.2,2640.9,0.7674]
[1727375726242,0.35654787,2641.3,2640.9,0.7674]
[1727375726421,2.38079133,2641.3,2640.9,0.7674]
[1727375727047,2.38079133,2641.2,2640.9,0.7674]
[1727375727209,2.38079133,2641.3,2640.9,4.55391]
[1727375727409,0.7855,2641.4,2640.9,0.7674]
[1727375727649,2.38079133,2641.3,2640.9,0.7674]
[1727375728059,2.38079133,2641.3,2640.7,4.55427]
[1727375728221,0.7855,2641.1,2640.5,3.78713]
[1727375728402,0.7855,2641.1,2640.4,0.7674]
[1727375728606,0.7855,2641.1,2640.4,4.55459]
[1727375728607,2.38079133,2641.0,2640.4,4.55459]
[1727375728807,0.31662913,2640.9,2640.4,4.55459]
[1727375729032,2.69742046,2640.9,2640.4,4.55459]
[1727375729244,4.28229027,2640.9,2640.0,0.7674]
[1727375729453,2.38079133,2640.6,2640.1,3.78772]
[1727375729655,0.23807913,2640.5,2640.2,3.78749]
[1727375729820,2.38079133,2640.8,2640.3,0.84314377]
[1727375730145,0.23807913,2640.7,2640.4,3.78729]
[1727375730318,2.38079133,2640.9,2640.3,0.84314377]
[1727375730319,2.38079133,2640.9,2640.3,4.55476]
[1727375730647,0.7855,2641.1,2640.3,4.55476]
[1727375730648,2.38079133,2641.0,2640.4,3.78729]
[1727375730861,2.73710032,2641.0,2640.4,3.78729]
[1727375731157,0.35630899,2641.0,2640.6,0.7581]
[1727375731320,2.38079133,2641.3,2640.8,3.7867]
[1727375731646,0.7511,2641.2,2640.6,0.7581]
[1727375731826,3.36997046,2641.2,2640.4,3.7872]
[1727375732158,3.49679027,2641.5,2640.0,7.28459027]
[1727375732159,0.7511,2641.0,2640.0,7.28459027]
[1727375732310,0.7511,2641.0,2640.2,4.54564]
[1727375732311,2.38079133,2640.9,2640.2,4.54564]
[1727375732518,0.31318913,2640.8,2640.2,4.54564]
[1727375732953,3.13189133,2641.0,2640.2,4.54564]
[1727375733138,2.38079133,2640.9,2640.2,0.7581]
[1727375733336,2.38079133,2640.9,2640.0,8.04266027]
[1727375733678,2.38079133,2640.9,2640.1,0.55]
[1727375733978,0.31318913,2640.8,2640.1,0.55]
[1727375734479,0.7511,2640.7,2640.1,4.33771]
[1727375734637,0.7511,2640.7,2640.1,0.55]
[1727375735675,0.7511,2640.7,2640.1,4.3377]
[1727375735850,1.09560805,2640.7,2640.1,4.3377]
[1727375736553,1.09560805,2640.7,2640.1,0.55]
[1727375737270,1.09560805,2640.7,2640.0,4.54587]
[1727375737476,0.34450805,2640.7,2640.3,3.78736]
[1727375737676,2.37680224,2641.0,2640.6,3.49679027]
[1727375737894,2.37680224,2641.1,2640.6,7.28371027]
[1727375738188,2.37680224,2641.1,2640.5,4.54522]
[1727375738189,2.68959246,2641.1,2640.5,4.54522]
[1727375738390,0.31279022,2641.1,2640.5,4.54522]
[1727375738680,0.31279022,2641.1,2640.5,0.7581]
[1727375739567,0.31279022,2641.1,2640.5,4.54524]
[1727375740600,0.31279022,2641.1,2640.6,3.787]
[1727375741095,0.31279022,2641.1,2640.6,7.28379027]
[1727375741814,3.12716271,2641.2,2640.6,3.787]
[1727375742664,3.12716271,2641.2,2640.5,4.54526]
[1727375742866,0.7511,2641.2,2640.5,8.33229]
[1727375743601,2.37606271,2641.3,2640.8,3.78669]
[1727375743794,2.37606271,2641.6,2641.2,0.55]
[1727375744194,3.12716271,2641.7,2641.2,0.55]
[1727375745092,0.31271627,2641.6,2641.2,4.33614]
[1727375745700,2.37599998,2641.8,2641.4,3.49679027]
[1727375746010,3.14679998,2642.3,2641.7,3.78537]
[1727375746163,1.36268,2642.3,2641.8,3.49679027]
[1727375746592,0.7708,2642.3,2641.8,3.49679027]
[1727375747705,3.14679998,2642.3,2641.6,8.05685027]
[1727375748111,0.7708,2642.3,2641.7,3.78543]
[1727375748514,0.7708,2642.3,2641.7,3.78536]
[1727375749485,0.31468,2642.2,2641.7,3.78536]
[1727375749770,0.31468,2642.2,2641.8,7.28200027]
[1727375750008,2.37599998,2642.5,2642.1,4.55936]
[1727375750211,2.37599998,2642.7,2642.2,3.49679027]
[1727375750435,2.37599998,2642.8,2642.4,3.49679027]
[1727375750727,0.0377918,2643.0,2642.8,3.78377]
[1727375750874,0.0377918,2643.0,2642.9,3.49679027]
[1727375751071,0.0377918,2643.0,2642.9,8.60501027]
[1727375752976,0.0377918,2643.0,2642.9,4.82129027]
[1727375753374,0.0377918,2643.0,2642.7,0.7745]
[1727375753886,0.0377918,2643.0,2642.7,0.55]
[1727375754508,0.0377918,2643.0,2642.9,3.49679027]
[1727375754811,0.0377918,2643.0,2642.9,4.27129027]
[1727375755621,0.0377918,2643.0,2642.9,0.7745]
[1727375755842,0.0377918,2643.0,2642.7,4.04679027]
[1727375756046,0.0377918,2643.0,2642.7,0.62567125]
[1727375756360,0.0377918,2643.0,2642.7,4.40966125]
[1727375756532,0.0377918,2643.0,2642.7,7.90645152]
[1727375756726,0.0377918,2643.0,2642.7,0.55]
[1727375757053,0.0377918,2643.0,2642.7,0.62567126]
[1727375757252,0.0377918,2643.0,2642.7,0.55]
[1727375757462,0.0377918,2643.0,2642.7,0.62567123]
[1727375757822,0.0377918,2643.0,2642.7,0.55]
[1727375758331,0.0377918,2643.0,2642.7,0.62567114]
[1727375758526,0.0377918,2643.0,2642.7,4.40960114]
[1727375758938,0.0377918,2643.0,2642.7,7.90639141]
[1727375759133,0.0377918,2643.0,2642.7,7.83072027]
[1727375759869,0.0377918,2643.0,2642.7,4.33393]
[1727375760435,0.0377918,2643.0,2642.7,0.55]
[1727375761666,0.0377918,2643.0,2642.7,0.62567092]
[1727375761868,0.0377918,2643.0,2642.5,3.78427]
[1727375762036,0.0377918,2643.0,2642.5,11.06526027]
[1727375762778,0.0377918,2643.0,2642.5,7.28099027]
[1727375762936,0.0377918,2643.0,2642.5,3.78428]
[1727375764172,0.0377918,2643.0,2642.5,7.28099027]
[1727375764333,0.0377918,2643.0,2642.5,11.06520027]
[1727375764937,0.0377918,2643.0,2642.7,3.78395]
[1727375765355,0.0377918,2643.0,2642.7,7.28074027]
[1727375765666,0.0377918,2643.0,2642.7,11.06463027]
[1727375765883,0.0377918,2643.0,2642.9,7.83051027]
[1727375766176,0.0377918,2643.0,2642.9,8.60071027]
[1727375771236,0.0377918,2643.0,2642.9,5.10392]
[1727375774177,0.0377918,2643.0,2642.9,11.67637197]
[1727375774408,0.0377918,2643.8,2643.7,5.10277]
[1727375774569,0.0377918,2643.8,2643.7,8.67519648]
[1727375774751,0.0377918,2643.8,2643.7,8.59956027]
[1727375775700,0.0377918,2643.8,2643.7,11.59956027]
[1727375776755,0.7872,2644.9,2643.8,3.55]
[1727375776989,0.7872,2645.5,2644.5,11.63172027]
[1727375777154,50.5,2645.3,2644.5,11.63172027]
[1727375777354,50.5,2645.2,2644.5,11.63172027]
[1727375777567,50.5,2645.3,2644.5,11.63172027]
[1727375777795,50.5,2645.2,2644.5,11.63172027]
[1727375778026,3.6062618,2644.6,2644.5,11.63172027]
[1727375778356,3.5562618,2644.6,2644.5,11.63172027]
[1727375778587,1.81574856,2645.5,2644.6,6.78126]
[1727375778794,1.29550286,2645.5,2644.6,10.56244]
[1727375779090,0.7872,2645.5,2644.6,6.78118]
[1727375779296,0.7872,2645.5,2644.7,3.78113]
[1727375780053,0.7872,2645.3,2644.7,3.57240378]
[1727375780259,0.7872,2645.8,2645.2,4.33039]
[1727375780577,0.7872,2645.8,2645.3,7.82707027]
[1727375781460,0.7872,2645.8,2645.3,0.55]
[1727375781655,0.7872,2645.8,2645.3,4.33028]
[1727375782380,0.7872,2645.8,2645.0,3.78063]
[1727375782578,0.8249918,2645.4,2645.0,3.78063]
[1727375783211,0.8249918,2645.4,2644.9,0.55]
[1727375783382,0.8249918,2645.4,2644.9,4.33085]
[1727375783807,0.8249918,2645.4,2645.0,3.7807]
[1727375784108,0.8249918,2645.4,2645.1,3.78055]
[1727375784411,0.0377918,2645.4,2645.1,3.78055]
[1727375784581,0.0377918,2645.4,2645.0,7.56134]
[1727375785379,0.0377918,2645.4,2645.0,3.78064]
[1727375785563,0.0377918,2645.4,2644.9,4.33081]
[1727375785767,0.0377918,2645.4,2644.9,0.55]
[1727375785967,0.0377918,2645.4,2645.0,3.7807]
[1727375787307,0.7872,2645.3,2644.8,7.56179]
[1727375787507,0.7872,2645.3,2644.8,3.78087]
[1727375788405,0.7872,2645.3,2644.6,6.78115]
[1727375788714,0.7872,2645.3,2644.6,3.78115]
[1727375789482,0.7872,2645.3,2644.7,3.78112]
[1727375789993,0.7872,2645.3,2644.9,3.78082]
[1727375790374,0.7872,2645.3,2644.9,7.56159]
[1727375790587,0.7872,2645.3,2644.9,3.78077]
[1727375791120,0.7872,2645.3,2644.8,3.78096]
[1727375791605,0.7872,2645.3,2644.9,3.78084]
[1727375791992,0.7872,2645.3,2644.7,3.78108]
[1727375792174,0.7872,2645.3,2644.7,7.56213]
[1727375792796,0.7872,2645.3,2644.4,11.62938002]
[1727375792797,0.7872,2645.3,2644.6,3.78128]
[1727375793995,0.78190556,2645.3,2644.6,3.78128]
[1727375794214,0.0377918,2645.4,2645.0,3.78066]
[1727375794426,0.0377918,2645.4,2644.9,3.85644537]
[1727375794594,0.0377918,2645.4,2645.1,3.78055]
[1727375794916,0.0377918,2645.4,2645.3,3.78028]
[1727375795583,0.0377918,2645.4,2645.3,5.15727674]
[1727375796321,0.0377918,2646.1,2646.0,3.77928]
[1727375796624,0.0377918,2646.1,2646.0,5.08068]
[1727375796786,0.0377918,2646.1,2646.0,8.15624581]
[1727375796984,0.0377918,2646.1,2646.0,8.08068]
[1727375797206,0.0377918,2646.9,2646.8,3.77814]
[1727375797387,0.0377918,2646.9,2646.6,3.77841]
[1727375797590,0.0377918,2646.9,2646.8,3.77814]
[1727375797978,0.0377918,2646.9,2646.8,4.52954]
[1727375798319,0.0377918,2646.9,2646.8,5.07954]
[1727375798524,0.0377918,2646.9,2646.4,0.7514]
[1727375798681,0.0377918,2646.9,2646.7,3.77819]
[1727375799526,0.0377918,2646.9,2646.8,4.32814]
[1727375800022,0.0377918,2646.9,2646.7,3.77819]
[1727375800177,0.0377918,2646.9,2646.7,7.5564]
[1727375800379,0.0377918,2646.9,2646.7,3.77819]
[1727375800583,0.0377918,2646.9,2646.8,3.77814]
[1727375800795,0.0377918,2646.9,2646.8,5.07954]
[1727375802815,0.0377918,2646.9,2646.8,5.15508294]
[1727375803118,0.0377918,2646.9,2646.8,5.07954]
[1727375803279,0.0377918,2646.9,2646.8,5.15508295]
[1727375803680,0.0377918,2646.9,2646.8,8.15508295]
[1727375803922,0.0377918,2646.9,2646.8,8.07954]
[1727375804732,0.0377918,2647.7,2647.6,3.777]
[1727375804941,0.0377918,2647.7,2647.6,3.85253166]
[1727375805391,0.0377918,2647.7,2647.6,0.07553166]
[1727375806132,0.0377918,2647.7,2647.6,3.85253166]
[1727375806428,0.0377918,2647.7,2647.6,4.40252758]
[1727375806795,0.0377918,2647.7,2647.6,0.62552758]
[1727375808365,0.0377918,2647.7,2647.6,4.327]
[1727375808636,0.0377918,2647.7,2647.6,4.40252754]
[1727375809126,0.0377918,2647.7,2647.4,6.77719]
[1727375809532,0.0377918,2647.7,2647.5,0.55]
[1727375810817,0.0377918,2647.7,2647.4,3.77719]
[1727375811126,0.0377918,2647.7,2647.3,3.77742]
[1727375811329,0.0377918,2647.7,2647.1,7.58861]
[1727375811530,0.7744,2647.6,2647.1,6.77761]
[1727375811694,0.7744,2647.6,2646.9,11.92887]
[1727375811914,0.7744,2647.6,2646.9,4.58887]
[1727375812142,0.7744,2647.6,2646.7,0.811]
[1727375812363,0.0377918,2647.7,2646.5,19.59]
[1727375812364,0.7744,2647.5,2646.5,7.34]
[1727375812656,0.7744,2647.5,2646.6,3.77829]
[1727375813358,0.45515,2647.4,2646.6,3.77829]
[1727375813717,0.45515,2647.4,2646.6,7.55664]
[1727375813924,0.7744,2647.3,2646.5,7.34]
[1727375814266,0.7744,2647.3,2646.5,11.11844]
[1727375814463,1.275081,2647.3,2646.6,3.77832]
[1727375814656,0.7744,2647.3,2646.7,3.77817]
[1727375815232,0.7744,2647.3,2646.6,3.77842]
[1727375816674,0.7744,2647.3,2646.9,3.77799]
[1727375816818,0.7744,2647.3,2646.9,7.5559]
[1727375817024,0.7744,2647.3,2646.9,3.77791]
[1727375817318,0.7744,2647.3,2647.1,3.77762]
[1727375817520,0.7744,2647.6,2647.2,3.77748]
[1727375817720,0.7744,2647.6,2647.4,3.77724]
[1727375818327,0.7744,2647.6,2647.3,3.77735]
[1727375818922,0.7744,2647.6,2647.4,3.77729]
[1727375819118,0.0377918,2647.7,2647.4,3.77729]
[1727375819732,0.0377918,2647.7,2647.3,3.85288908]
[1727375820278,0.0377918,2647.7,2647.6,7.327]
[1727375820420,0.0377918,2647.7,2647.6,7.40252094]
[1727375820618,0.0377918,2647.7,2647.6,8.22912094]
[1727375820820,0.0377918,2647.7,2647.6,8.72052179]
[1727375821069,0.2,2648.6,2648.4,3.77586]
[1727375821235,0.2,2648.6,2648.4,8.61524002]
[1727375821424,0.2,2648.6,2648.4,4.32586]
[1727375822549,0.2,2648.6,2648.5,3.77572]
[1727375822723,0.2,2648.6,2648.5,3.8512229]
[1727375823640,0.2,2648.6,2648.5,7.4012229]
[1727375825024,0.2,2648.6,2648.5,7.40121971]
[1727375825232,0.2,2648.6,2648.5,7.32572]
[1727375825926,0.2,2648.6,2648.5,7.40121415]
[1727375826126,0.2,2648.6,2648.5,7.32572]
[1727375826775,0.2,2648.6,2648.2,3.77601]
[1727375826935,0.7888,2648.5,2647.6,3.77692]
[1727375827266,0.7888,2648.5,2648.0,3.77634]
[1727375827834,0.7888,2648.5,2647.8,3.77662]
[1727375828168,0.7888,2648.5,2647.9,3.77645]
[1727375828329,0.7888,2648.5,2648.0,3.77642]
[1727375828533,0.7888,2648.5,2647.8,3.77662]
[1727375829358,0.7888,2648.5,2647.9,3.77655]
[1727375829663,0.7888,2648.5,2647.8,3.77662]
[1727375830067,0.7888,2648.5,2647.6,3.77694]
[1727375830442,0.7888,2648.5,2647.4,3.77721]
[1727375830774,0.7888,2648.4,2647.2,3.77748]
[1727375831077,0.7888,2648.1,2647.1,3.77768]
[1727375831232,0.7888,2648.1,2647.2,3.77746]
[1727375831428,0.7888,2648.1,2647.1,3.77768]
[1727375831633,0.7888,2647.9,2647.1,3.77768]
[1727375832136,0.7888,2647.9,2647.3,3.77739]
[1727375832637,0.7888,2647.9,2647.2,3.0]
[1727375832880,0.7888,2647.9,2647.2,6.77747]
[1727375833034,0.7888,2647.9,2647.1,3.77758]
[1727375833935,0.7888,2647.9,2646.7,4.28938002]
[1727375833936,0.7888,2647.8,2646.9,3.77796]
[1727375834283,0.7888,2647.6,2647.0,3.77782]
[1727375834449,0.7888,2647.6,2646.8,3.7781]
[1727375834770,0.7888,2647.6,2647.0,3.77784]
[1727375835068,0.7888,2647.6,2647.1,3.7777]
[1727375835268,0.7888,2647.6,2646.5,11.11855]
[1727375835269,0.7888,2647.6,2647.2,3.77757]
[1727375835455,0.7888,2647.6,2647.2,3.77749]
[1727375836276,0.7888,2647.6,2647.2,7.55498]
[1727375836480,0.7888,2647.6,2647.2,3.77749]
[1727375836837,0.7888,2647.6,2647.2,7.55499]
[1727375837334,0.7888,2647.6,2647.3,3.77742]
[1727375838282,0.7888,2647.6,2647.2,3.77748]
[1727375838484,0.7888,2647.6,2647.1,3.77771]
[1727375840484,0.7888,2647.6,2647.3,3.77735]
[1727375840783,0.7888,2647.6,2647.2,3.77752]
[1727375840940,0.7669,2648.1,2647.4,3.77725]
[1727375842857,0.7669,2648.1,2647.2,3.77748]
[1727375843058,0.7669,2648.1,2647.2,7.55498]
[1727375843392,0.7669,2647.9,2647.4,3.77722]
[1727375844396,0.7669,2647.9,2647.2,3.77743]
[1727375844551,0.7669,2647.9,2647.1,3.77771]
[1727375844755,0.7669,2647.9,2647.1,3.77763]
[1727375844952,0.7669,2647.9,2647.2,3.77756]
[1727375845290,0.7669,2647.9,2647.1,3.77763]
[1727375845498,0.7669,2647.9,2647.1,7.55526]
[1727375845649,0.7669,2647.9,2647.1,3.77763]
[1727375845985,0.7669,2647.9,2647.2,3.77756]
[1727375846196,0.7669,2647.9,2647.1,3.77763]
[1727375846486,0.7669,2647.7,2646.9,3.7779]
[1727375846697,4.231154,2647.8,2646.5,14.89583]
[1727375846698,0.7669,2647.5,2646.8,3.77812]
[1727375847193,0.7669,2647.5,2646.6,7.55667]
[1727375847373,1.221292,2647.4,2646.5,3.77848]
[1727375847557,0.7669,2647.4,2647.0,3.77779]
[1727375848887,0.7669,2647.4,2646.8,7.55615]
[1727375849057,0.7669,2647.4,2646.9,3.77798]
[1727375849261,0.7669,2647.4,2647.1,3.7777]
[1727375850435,0.7669,2647.4,2646.6,3.77839]
[1727375850436,0.7669,2647.4,2647.0,0.07555476]
[1727375850705,0.8004,2647.7,2647.5,3.77712]
[1727375851465,0.8004,2647.7,2647.6,3.777]
[1727375852905,3.1553975,2648.5,2647.6,3.777]
[1727375852906,0.8004,2648.4,2647.7,3.77681]
[1727375853315,0.8004,2648.4,2647.7,3.77672]
[1727375854005,0.8004,2648.4,2647.8,3.77669]
[1727375854406,0.8004,2648.4,2647.6,3.77692]
[1727375854707,0.8004,2648.3,2647.6,3.77692]
[1727375855207,0.8004,2648.3,2647.7,3.77677]
[1727375855367,0.8004,2648.3,2647.9,3.77645]
[1727375855576,0.8004,2648.3,2648.1,3.77629]
[1727375856102,0.2,2648.6,2648.3,3.77588]
[1727375856103,1.0004,2648.6,2648.3,3.77588]
[1727375856311,1.0004,2648.6,2648.4,3.77575]
[1727375857994,0.2,2648.6,2648.4,3.77575]
[1727375858196,0.2,2648.6,2648.5,3.77572]
[1727375859683,0.2,2648.6,2648.4,3.77575]
[1727375860203,0.2,2648.6,2648.5,3.77572]
[1727375860586,0.2,2648.6,2648.4,3.77575]
[1727375860922,0.2,2648.6,2648.2,3.7761]
[1727375860923,0.8004,2648.5,2648.0,3.77635]
[1727375861128,0.8004,2648.5,2647.6,8.1407]
[1727375861129,0.8004,2648.5,2647.8,3.77667]
[1727375861440,0.8004,2648.5,2647.3,3.77739]
[1727375861441,0.8004,2648.5,2647.7,3.77675]
[1727375861785,0.8004,2648.5,2647.3,4.57809]
[1727375861786,0.8004,2648.5,2647.8,3.77663]
[1727375862409,0.8004,2648.5,2647.8,7.55326]
[1727375862608,0.8004,2648.5,2647.8,3.77669]
[1727375862813,0.8004,2648.5,2648.0,3.77641]
[1727375864031,0.8004,2648.5,2647.8,3.77669]
[1727375864383,0.8004,2648.5,2647.9,3.77657]
[1727375864787,0.8004,2648.5,2648.0,3.77642]
[1727375865083,0.8004,2648.5,2647.8,3.77664]
[1727375865520,0.8004,2648.5,2647.6,7.55383]
[1727375865720,0.8004,2648.5,2647.7,3.77684]
[1727375866288,0.8004,2648.5,2647.8,3.77667]
[1727375866490,0.8004,2648.5,2647.8,7.55334]
[1727375866729,0.8004,2648.5,2647.8,3.77667]
[1727375866929,0.8004,2648.5,2647.6,7.55378]
[1727375867227,0.477599,2648.4,2647.7,3.77683]
[1727375867427,0.813,2648.3,2647.8,3.7767]
[1727375868821,0.813,2648.3,2647.8,3.77662]
[1727375869387,0.813,2648.3,2647.8,7.55327]
[1727375869594,0.813,2648.3,2647.8,3.77662]
[1727375870186,0.813,2648.3,2647.9,3.7765]
[1727375871392,0.813,2648.3,2648.0,3.77643]
[1727375871593,0.813,2648.3,2647.9,3.77652]
[1727375872015,0.813,2648.3,2647.8,3.77658]
[1727375872324,0.813,2648.3,2647.8,3.77665]
[1727375872527,0.813,2648.3,2647.9,3.77653]
[1727375872704,0.35741826,2648.2,2647.9,3.77653]
[1727375873307,0.35741826,2648.2,2648.0,3.77642]
[1727375874732,0.35741826,2648.2,2647.8,3.77665]
[1727375875029,0.35741826,2648.2,2648.0,3.77643]
[1727375875836,0.35741826,2648.2,2647.8,3.77665]
[1727375875837,0.35741826,2648.2,2647.8,3.7766]
[1727375876037,0.813,2648.1,2647.1,0.7843]
[1727375876237,0.813,2648.1,2647.4,3.77729]
[1727375876238,0.813,2648.0,2647.4,3.77729]
[1727375876424,0.813,2648.0,2647.6,3.77691]
[1727375876425,0.70592358,2647.9,2647.6,3.77691]
[1727375877737,0.70592358,2647.9,2647.8,3.77672]
[1727375877937,0.813,2648.0,2647.9,3.77657]
[1727375878435,0.813,2648.0,2647.8,3.77671]
[1727375878600,0.813,2648.0,2647.8,3.77661]
[1727375879914,2.76819734,2648.4,2648.1,3.77629]
[1727375880242,0.813,2648.5,2648.3,3.776]
[1727375880243,3.58119734,2648.5,2648.3,3.776]
[1727375880443,0.37811973,2648.4,2648.3,3.776]
[1727375880622,0.813,2648.5,2648.3,3.776]
[1727375882650,0.2,2648.6,2648.5,3.77572]
[1727375883358,0.2342516,2648.6,2648.5,3.77572]
[1727375893187,1.0565516,2648.6,2648.5,3.77572]
[1727375895568,1.0565516,2648.6,2648.4,3.77586]
[1727375896497,1.0565516,2648.6,2648.5,3.77572]
[1727375896990,0.2342516,2648.6,2648.5,3.77572]
[1727375902805,0.2342516,2648.6,2648.4,7.55156]
[1727375902972,0.2342516,2648.6,2648.3,3.77598]
[1727375903699,0.2342516,2648.6,2648.3,7.55189]
[1727375903998,0.2342516,2648.6,2648.4,3.77586]
[1727375904204,0.2342516,2648.6,2648.3,3.77589]
[1727375904505,0.7656,2648.5,2648.0,3.77643]
[1727375904662,0.7656,2648.5,2647.9,0.07552678]
[1727375904861,0.2342516,2648.6,2648.5,3.77572]
[1727375905996,0.2342516,2648.6,2648.4,3.77585]
[1727375907394,0.2342516,2648.6,2648.3,7.55181]
[1727375907610,0.2342516,2648.6,2648.4,3.77577]
[1727375910479,0.2342516,2648.6,2648.1,3.77617]
[1727375910679,0.2342516,2648.6,2648.0,3.77633]
[1727375910680,0.8095,2648.5,2648.0,3.77633]
[1727375910902,0.72893818,2648.4,2648.0,3.77633]
[1727375911266,0.72893818,2648.4,2647.9,3.77657]
[1727375911480,0.76318978,2648.4,2647.9,3.77657]
[1727375911871,0.76318978,2648.4,2648.0,3.77642]
[1727375912208,0.43412043,2648.3,2647.9,3.77656]
[1727375912589,4.28661574,2648.2,2647.6,3.77691]
[1727375912908,4.28661574,2648.2,2647.2,0.8256]
[1727375912909,2.7685145,2647.9,2647.3,0.07553898]
[1727375913105,2.7685145,2648.2,2647.9,3.77645]
[1727375913405,2.7685145,2648.2,2647.8,3.77669]
[1727375913574,2.7685145,2648.2,2648.0,3.77642]
[1727375913779,2.7685145,2648.2,2648.0,7.55278]
[1727375913999,3.5780145,2648.3,2648.0,3.77636]
[1727375914176,4.26627189,2648.3,2648.0,3.77636]
[1727375914479,3.5780145,2648.3,2647.7,3.77678]
[1727375914681,3.47711574,2648.0,2647.4,3.7772]